bitfinex-derivatives/quotes_SOLF0:USTF0_20241224
["timestamp","ask_amount","ask_price","bid_price","bid_amount"]
[1735003130691,2.6301,190.35,190.31,2.6305]
[1735003132492,2.6305,190.32,190.28,2.6309]
[1735003132785,2.6305,190.32,190.29,11.84968435]
[1735003132989,2.6305,190.32,190.29,7.69404376]
[1735003133191,2.6305,190.32,190.3,4.15449585]
[1735003133386,2.6305,190.32,190.29,7.69404376]
[1735003136493,2.6305,190.32,190.29,10.32484376]
[1735003137897,7.69404376,190.35,190.29,10.32484376]
[1735003138194,2.6303,190.33,190.29,10.32484376]
[1735003139596,2.6303,190.33,190.29,2.6308]
[1735003140993,6.38006504,190.32,190.27,11.05404376]
[1735003141195,6.38006504,190.32,190.23,15.02984211]
[1735003141499,7.69404376,190.29,190.24,4.14936427]
[1735003141688,7.69404376,190.29,190.22,57.54225632]
[1735003141893,7.69404376,190.27,190.22,57.54225632]
[1735003142094,7.69404376,190.25,190.22,57.54225632]
[1735003142595,2.6315,190.24,190.2,2.632]
[1735003143500,2.6316,190.23,190.19,10.32624376]
[1735003143695,2.6316,190.23,190.19,2.6322]
[1735003144397,10.32564376,190.23,190.19,2.6322]
[1735003144593,7.69404376,190.23,190.17,2.6324]
[1735003144798,7.69404376,190.21,190.12,80.09137738]
[1735003144996,7.69404376,190.21,190.13,11.82872566]
[1735003145199,7.69404376,190.19,190.13,7.69404376]
[1735003145695,2.6323,190.18,190.14,2.6329]
[1735003145894,7.69404376,190.19,190.14,2.6329]
[1735003146300,7.69404376,190.17,190.08,19.91943432]
[1735003146498,7.69404376,190.17,190.1,7.69404376]
[1735003146898,2.6328,190.15,190.1,10.32734376]
[1735003147200,7.69404376,190.17,190.1,7.69404376]
[1735003147698,7.69404376,190.15,190.04,3.36]
[1735003147998,2.6326,190.16,190.09,7.69404376]
[1735003149402,2.6326,190.16,190.11,2.6332]
[1735003150003,2.6329,190.14,190.09,2.6335]
[1735003150199,7.69404376,190.15,190.07,7.69404376]
[1735003150604,7.69404376,190.15,190.09,2.6336]
[1735003151201,2.633,190.13,190.08,2.6337]
[1735003151400,10.32704376,190.13,190.08,2.6337]
[1735003151904,10.32704376,190.13,190.07,7.69404376]
[1735003152102,2.6332,190.12,190.07,10.32784376]
[1735003152301,2.6332,190.12,190.07,2.6338]
[1735003152500,7.69404376,190.13,190.06,2.634]
[1735003152700,2.6335,190.1,190.03,7.69404376]
[1735003153204,2.6335,190.1,190.05,2.6341]
[1735003153402,1.6422,190.12,190.05,7.69404376]
[1735003153717,1.6422,190.12,190.07,2.6338]
[1735003154100,4.2754,190.12,190.07,10.32784376]
[1735003154295,1.6493,190.14,190.09,7.69404376]
[1735003154695,1.6493,190.14,190.1,2.6333]
[1735003155005,1.6493,190.14,190.09,7.69404376]
[1735003155201,1.6493,190.14,190.11,2.6333]
[1735003155700,1.6493,190.14,190.09,7.69404376]
[1735003155899,6.30240535,190.15,190.11,7.69404376]
[1735003156094,6.30240535,190.15,190.13,7.69404376]
[1735003156300,6.30240535,190.15,190.14,7.69404376]
[1735003157407,6.30240535,190.15,190.14,10.32694376]
[1735003157803,7.69404376,190.22,190.14,7.69404376]
[1735003158104,1.71295427,190.23,190.19,2.6321]
[1735003158906,6.37153125,190.2,190.19,2.6321]
[1735003161904,6.37153125,190.2,190.15,7.69404376]
[1735003161905,14.06557501,190.2,190.15,2.6326]
[1735003162109,14.06557501,190.2,190.09,4.09569831]
[1735003162110,7.69404376,190.18,190.11,11.05404376]
[1735003162411,7.69404376,190.16,190.09,7.69404376]
[1735003162908,7.69404376,190.14,190.08,3.36]
[1735003163103,7.69404376,190.14,190.11,2.6333]
[1735003164406,7.69404376,190.14,190.07,7.69404376]
[1735003164705,10.32694376,190.14,190.09,2.6335]
[1735003166009,9.00363125,190.2,190.15,2.6326]
[1735003166211,7.69404376,190.19,190.15,2.6326]
[1735003167514,16.69767501,190.2,190.15,2.6326]
[1735003168210,9.00363125,190.2,190.15,2.6326]
[1735003175816,22.29784505,190.2,190.15,2.6326]
[1735003176715,22.29784505,190.2,190.16,2.6326]
[1735003178912,19.66574505,190.2,190.13,2.6329]
[1735003179117,13.2942138,190.17,190.13,2.6329]
[1735003179617,15.9268138,190.17,190.13,2.6329]
[1735003179818,13.2942138,190.17,190.11,2.6332]
[1735003180012,13.2942138,190.14,190.09,57.54225632]
[1735003180218,13.2942138,190.14,190.08,57.54225632]
[1735003181017,2.6332,190.12,190.07,2.6339]
[1735003181218,2.6332,190.12,190.04,60.90225632]
[1735003181920,2.6332,190.12,190.08,2.6336]
[1735003186727,15.9272138,190.14,190.1,2.6334]
[1735003187023,3.1633,190.15,190.04,3.36]
[1735003187225,13.2942138,190.17,190.06,13.2942138]
[1735003187424,13.2942138,190.17,190.07,4.13706783]
[1735003187625,13.2942138,190.17,190.08,4.13706783]
[1735003187820,13.2942138,190.17,190.09,4.13706783]
[1735003188021,13.2942138,190.17,190.1,4.13706783]
[1735003188218,8.5124256,190.15,190.11,4.1400127]
[1735003188422,8.5124256,190.13,190.06,8.5124256]
[1735003188618,8.5124256,190.13,190.07,4.14007209]
[1735003188829,8.5124256,190.13,190.08,4.14007209]
[1735003189022,8.5124256,190.13,190.09,4.14007209]
[1735003189223,8.5124256,190.13,190.1,4.14007209]
[1735003189420,8.5124256,190.13,190.06,66.05468192]
[1735003189631,8.5124256,190.13,190.07,4.14126313]
[1735003189830,8.5124256,190.13,190.08,4.14144488]
[1735003190029,8.5124256,190.13,190.09,4.14144488]
[1735003190229,8.5124256,190.13,190.06,66.05468192]
[1735003190430,2.6332,190.12,190.09,2.6336]
[1735003191127,2.6332,190.12,190.06,8.5124256]
[1735003191321,2.6333,190.11,190.08,2.6337]
[1735003191730,11.1457256,190.11,190.07,2.6338]
[1735003195730,11.1460256,190.09,190.06,2.634]
[1735003198228,8.5124256,190.09,190.02,8.5124256]
[1735003198434,11.1458256,190.11,190.04,8.5124256]
[1735003198633,11.1458256,190.11,190.05,4.14572666]
[1735003198931,11.1458256,190.11,190.04,8.5124256]
[1735003198932,6.23071929,190.1,190.07,2.6337]
[1735003200224,6.23071929,190.1,190.04,8.5124256]
[1735003200429,8.86431929,190.1,190.06,2.634]
[1735003201832,8.5124256,190.09,190.06,2.634]
[1735003202228,11.1460256,190.09,190.05,2.6341]
[1735003202532,8.5124256,190.09,190.02,8.5124256]
[1735003202729,8.5124256,190.09,190.03,4.14603962]
[1735003202931,8.5124256,190.09,190.04,4.14603962]
[1735003203129,8.5124256,190.09,190.02,8.5124256]
[1735003203328,8.5124256,190.09,190.07,2.6337]
[1735003204034,8.5124256,190.09,190.02,8.5124256]
[1735003204228,8.5124256,190.07,190.03,4.15178113]
[1735003204432,8.5124256,190.05,189.99,97.9508215]
[1735003204737,8.5124256,190.03,189.99,97.9508215]
[1735003205129,8.5124256,190.03,189.99,40.40856518]
[1735003205334,8.5124256,190.03,190.0,2.6347]
[1735003205635,8.5124256,190.03,189.99,40.40856518]
[1735003206141,8.5124256,190.03,190.01,2.6347]
[1735003206932,8.5124256,190.03,189.99,40.40856518]
[1735003207131,8.5124256,190.01,189.93,57.54225632]
[1735003207333,8.5124256,189.99,189.94,4.15397368]
[1735003207533,8.5124256,189.99,189.96,2.6352]
[1735003207832,8.5124256,189.97,189.93,57.54225632]
[1735003208027,8.5124256,189.97,189.94,4.15433342]
[1735003208231,8.5124256,189.97,189.93,57.54225632]
[1735003208734,8.5124256,189.97,189.9,69.41468192]
[1735003208934,8.5124256,189.97,189.91,4.15310419]
[1735003209138,8.5124256,189.97,189.92,4.15310419]
[1735003209439,8.5124256,189.97,189.94,2.6355]
[1735003210140,4.8435,190.0,189.95,2.6354]
[1735003210333,8.5124256,189.99,189.92,8.5124256]
[1735003210534,6.23071929,190.1,189.94,8.5124256]
[1735003210831,8.5124256,190.02,189.95,7.50869485]
[1735003211038,8.5124256,190.02,189.95,3.36]
[1735003211442,8.5124256,190.02,190.0,2.6348]
[1735003218543,11.1467256,190.04,190.0,2.6348]
[1735003219344,8.5124256,190.02,190.0,2.6348]
[1735003226653,6.25547584,190.01,190.0,2.6348]
[1735003228355,6.25547584,190.01,190.0,11.1472256]
[1735003228556,6.25547584,190.01,190.0,15.29219761]
[1735003230758,6.25547584,190.01,190.0,15.29210481]
[1735003230959,6.25547584,190.01,190.0,11.1472256]
[1735003231357,6.25547584,190.01,190.0,2.6348]
[1735003232261,6.25547584,190.01,190.0,6.78429713]
[1735003233659,6.25547584,190.01,190.0,2.6348]
[1735003233860,6.25547584,190.01,190.0,6.78744182]
[1735003234162,6.25547584,190.01,190.0,2.6348]
[1735003234863,6.25547584,190.01,190.0,6.79002883]
[1735003238659,6.25547584,190.01,190.0,4.15522883]
[1735003239062,6.25547584,190.01,189.99,2.6349]
[1735003239262,6.25547584,190.01,189.97,57.54225632]
[1735003239865,6.25547584,190.01,189.96,3.36]
[1735003240565,6.25547584,190.01,189.98,2.6351]
[1735003241771,6.25547584,190.01,189.96,11.8724256]
[1735003242069,6.25547584,190.01,189.98,8.5124256]
[1735003242269,6.25547584,190.01,189.99,4.16111604]
[1735003242470,6.25547584,190.01,190.0,4.16111604]
[1735003243573,6.25547584,190.01,190.0,6.79591604]
[1735003244968,6.25547584,190.01,190.0,2.6348]
[1735003245166,6.25547584,190.01,190.0,6.79744818]
[1735003245367,6.25547584,190.01,190.0,2.6348]
[1735003245562,6.25547584,190.01,190.0,4.16306177]
[1735003245967,6.25547584,190.01,189.99,2.635]
[1735003246368,8.5124256,190.0,189.98,57.54225632]
[1735003246563,8.5124256,190.0,189.99,4.16486292]
[1735003246770,8.5124256,190.0,189.98,2.6351]
[1735003247164,8.5124256,190.0,189.94,144.80414062]
[1735003247369,8.5124256,189.98,189.95,4.16718525]
[1735003247567,8.5124256,189.96,189.94,57.54225632]
[1735003247877,2.6355,189.95,189.94,57.54225632]
[1735003248069,8.5124256,189.96,189.93,52.56705632]
[1735003248272,11.1481256,189.94,189.93,52.56705632]
[1735003249368,11.1481256,189.94,189.85,87.2618843]
[1735003249369,8.5124256,189.94,189.85,87.2618843]
[1735003249568,3.34,189.99,189.86,12.68415447]
[1735003249768,3.34,189.99,189.88,8.5124256]
[1735003250066,8.5124256,189.95,189.92,2.6359]
[1735003252176,2.6353,189.97,189.92,2.6359]
[1735003255877,1.6332,190.0,189.92,2.6359]
[1735003256074,88.04445056,190.15,189.99,23.9905491]
[1735003256271,88.04445056,190.15,190.08,11.99527455]
[1735003256574,88.04445056,190.15,190.09,1.6271]
[1735003256775,88.04445056,190.15,190.1,4.29344638]
[1735003256978,88.04445056,190.15,190.11,4.29294746]
[1735003257180,6.46687197,190.17,190.11,2.6333]
[1735003257680,9.80687197,190.17,190.12,5.19611506]
[1735003257873,6.46687197,190.17,190.12,5.19611506]
[1735003258178,9.80687197,190.17,190.11,2.6333]
[1735003258779,3.34,190.17,190.11,2.6333]
[1735003259182,3.34,190.17,190.09,4.2606]
[1735003259377,3.34,190.17,190.05,11.99527455]
[1735003259686,3.34,190.17,190.06,30.41301862]
[1735003259987,3.34,190.17,190.07,9.14355055]
[1735003260179,3.34,190.17,190.08,4.85264769]
[1735003260378,3.34,190.17,190.09,5.19431991]
[1735003260578,2.6327,190.16,190.09,5.19431991]
[1735003260778,2.6327,190.16,190.1,5.19431991]
[1735003260977,2.6328,190.15,190.1,5.19431991]
[1735003261179,2.6328,190.15,190.07,2.6338]
[1735003261379,2.6328,190.15,190.08,4.84890441]
[1735003261581,2.6328,190.15,190.09,5.18928225]
[1735003261781,2.6333,190.12,190.09,5.18928225]
[1735003261983,3.34,190.11,190.03,2.6344]
[1735003262180,3.34,190.11,190.04,4.85007759]
[1735003262375,3.34,190.11,190.04,13.49842651]
[1735003262779,3.34,190.11,190.05,5.1917025]
[1735003263184,3.34,190.11,190.03,2.6344]
[1735003263685,5.9733,190.11,190.04,5.19616945]
[1735003264082,3.34,190.11,190.05,5.19616945]
[1735003264386,3.34,190.11,190.01,2.6346]
[1735003264589,1.5862,190.1,190.02,4.85660128]
[1735003264786,1.5862,190.1,190.02,5.19846739]
[1735003265288,1.5862,190.1,190.01,2.6346]
[1735003265487,2.6337,190.08,190.01,2.6346]
[1735003265990,2.6337,190.08,190.02,5.19924602]
[1735003266288,2.6337,190.08,190.01,2.6346]
[1735003267084,2.6337,190.08,190.02,5.19975629]
[1735003267286,13.58147455,190.1,190.02,5.19975629]
[1735003267480,1.5453,190.09,189.99,2.6348]
[1735003268590,2.6341,190.05,189.99,2.6348]
[1735003268791,3.34,190.04,189.99,2.6348]
[1735003270288,3.34,190.04,189.97,14.63047455]
[1735003270893,3.34,190.04,189.98,5.20421684]
[1735003271296,3.34,190.04,189.97,2.6352]
[1735003271593,1.5221,190.03,189.97,2.6352]
[1735003272496,5.9746,190.02,189.97,2.6352]
[1735003273594,5.9746,190.02,189.94,11.99527455]
[1735003273795,5.9746,190.02,189.96,2.6353]
[1735003274691,2.6347,190.01,189.94,11.99527455]
[1735003274890,3.34,190.02,189.94,2.6355]
[1735003275087,3.34,190.02,189.95,5.20721936]
[1735003275299,2.6353,189.97,189.91,2.636]
[1735003275491,4.9345,190.02,189.9,11.99527455]
[1735003275691,11.99527455,190.01,189.87,84.78968456]
[1735003275890,11.99527455,190.01,189.91,5.20811942]
[1735003276092,2.6354,189.96,189.91,2.6361]
[1735003276300,5.9754,189.96,189.91,2.6361]
[1735003277293,2.6355,189.95,189.9,2.6362]
[1735003277897,3.34,189.96,189.87,11.99527455]
[1735003278198,3.34,189.96,189.88,13.53447873]
[1735003278398,13.51847455,189.95,189.89,5.20556874]
[1735003278801,1.6525,189.94,189.81,11.99527455]
[1735003278997,1.6525,189.94,189.82,22.58060799]
[1735003279204,2.6365,189.88,189.83,16.17519191]
[1735003279404,3.36,189.87,189.83,13.53819191]
[1735003279701,3.36,189.87,189.81,11.99527455]
[1735003279899,3.36,189.87,189.82,5.14794932]
[1735003280403,3.36,189.9,189.83,5.14794932]
[1735003280797,3.36,189.9,189.84,5.14794932]
[1735003281004,3.36,189.9,189.81,11.99527455]
[1735003281204,3.36,189.9,189.82,4.73680843]
[1735003281407,3.36,189.9,189.82,13.37406699]
[1735003281707,5.9964,189.89,189.84,2.637]
[1735003283407,5.9964,189.89,189.79,13.58497455]
[1735003283408,2.6367,189.87,189.82,2.6372]
[1735003284402,15.35527455,189.89,189.76,13.57697455]
[1735003284403,2.6372,189.83,189.78,2.6378]
[1735003284606,3.36,189.84,189.76,1.5817]
[1735003284909,3.36,189.84,189.77,5.14049004]
[1735003285117,3.36,189.84,189.77,13.36554674]
[1735003285318,3.36,189.84,189.78,5.14049004]
[1735003285710,3.36,189.84,189.76,1.5817]
[1735003286215,3.36,189.84,189.77,5.1369934]
[1735003286411,3.36,189.84,189.8,2.6375]
[1735003287918,3.36,189.85,189.81,2.6374]
[1735003288811,2.6369,189.86,189.81,2.6374]
[1735003289717,3.36,189.87,189.78,11.99527455]
[1735003290114,3.36,189.87,189.79,13.33177245]
[1735003290414,3.36,189.87,189.8,5.12760479]
[1735003290620,3.36,189.87,189.84,2.637]
[1735003291619,2.6365,189.89,189.84,2.637]
[1735003291811,2.6361,189.92,189.86,2.6367]
[1735003292015,3.36,189.91,189.81,11.99527455]
[1735003292209,3.36,189.91,189.82,1.5833]
[1735003292419,3.36,189.91,189.82,6.70689551]
[1735003292618,3.36,189.91,189.86,2.6367]
[1735003293220,3.36,189.91,189.82,1.5833]
[1735003293221,3.36,189.91,189.87,2.6366]
[1735003293421,5.9961,189.91,189.87,2.6366]
[1735003294422,2.6361,189.91,189.87,2.6366]
[1735003294615,5.9961,189.91,189.87,2.6366]
[1735003295923,2.6361,189.91,189.87,2.6366]
[1735003296121,5.9961,189.91,189.87,2.6366]
[1735003296521,5.9961,189.91,189.82,1.5833]
[1735003296723,3.36,189.91,189.85,2.6368]
[1735003297119,2.6366,189.88,189.83,2.6371]
[1735003297425,11.99527455,189.89,189.78,11.99527455]
[1735003297723,11.99527455,189.89,189.79,5.12418375]
[1735003297921,2.637,189.85,189.81,2.6374]
[1735003298722,2.637,189.84,189.81,2.6374]
[1735003299723,2.637,189.84,189.8,2.6376]
[1735003300725,2.6369,189.86,189.82,2.6373]
[1735003300924,3.36,189.9,189.78,11.99527455]
[1735003301427,2.6363,189.89,189.84,2.637]
[1735003301621,3.36,189.9,189.79,5.11911624]
[1735003301822,3.36,189.9,189.8,5.11911624]
[1735003302322,3.36,189.9,189.81,5.11911624]
[1735003302617,3.36,189.92,189.81,11.99527455]
[1735003302822,3.36,189.93,189.81,11.99527455]
[1735003303023,2.6361,189.92,189.87,2.6366]
[1735003304230,2.6361,189.91,189.87,2.6366]
[1735003308229,2.6361,189.91,189.85,2.6368]
[1735003308430,11.99527455,189.92,189.84,3.2266]
[1735003308728,11.99527455,189.92,189.86,5.15374106]
[1735003308929,2.6363,189.9,189.86,2.6366]
[1735003309229,3.36,189.94,189.87,5.15345644]
[1735003309632,3.36,189.94,189.88,5.15345644]
[1735003309927,3.36,189.94,189.84,3.2266]
[1735003310135,3.36,189.94,189.85,4.26165062]
[1735003310427,2.636,189.92,189.88,2.6365]
[1735003310829,2.636,189.92,189.89,5.15622605]
[1735003311028,2.636,189.92,189.88,2.6365]
[1735003311728,2.636,189.92,189.89,5.16141004]
[1735003311929,2.636,189.92,189.88,2.6365]
[1735003312131,10.31553825,189.92,189.88,2.6365]
[1735003312822,10.31553825,189.92,189.89,5.16342103]
[1735003313228,10.31553825,189.92,189.88,2.6365]
[1735003313931,10.31553825,189.92,189.89,5.16600602]
[1735003314234,10.31553825,189.92,189.88,2.6365]
[1735003314831,10.31553825,189.92,189.89,5.16999342]
[1735003315135,10.31553825,189.92,189.9,5.16999342]
[1735003315531,10.31553825,189.92,189.88,2.6365]
[1735003315827,10.31553825,189.92,189.89,13.44921982]
[1735003316234,10.31553825,189.92,189.88,2.6365]
[1735003316535,10.31553825,189.92,189.9,5.17301976]
[1735003316932,10.31553825,189.92,189.88,2.6365]
[1735003317235,2.6362,189.91,189.89,5.1738835]
[1735003317632,2.6362,189.91,189.9,5.1738835]
[1735003318134,2.6362,189.91,189.88,2.6365]
[1735003318324,2.6362,189.91,189.89,5.15110713]
[1735003318726,2.6362,189.91,189.88,2.6365]
[1735003319237,2.6362,189.91,189.89,5.15421826]
[1735003319437,10.31553825,189.92,189.89,5.15421826]
[1735003319639,10.31553825,189.92,189.9,5.15421826]
[1735003319832,7.67953825,189.92,189.9,5.15421826]
[1735003320029,2.6361,189.91,189.88,2.6365]
[1735003320227,2.6361,189.91,189.89,5.1581987]
[1735003320433,2.6361,189.91,189.9,5.1581987]
[1735003321938,2.6361,189.91,189.88,2.6365]
[1735003322131,2.6361,189.91,189.89,5.16299916]
[1735003322333,2.6361,189.91,189.88,2.6365]
[1735003322940,2.6361,189.91,189.89,5.16235398]
[1735003323140,2.6361,189.91,189.88,2.6365]
[1735003323740,7.67953825,189.92,189.86,2.6366]
[1735003324045,11.03953825,189.96,189.88,7.67953825]
[1735003324243,2.6355,189.96,189.92,2.6359]
[1735003324432,7.67953825,189.98,189.9,7.67953825]
[1735003324738,7.67953825,189.98,189.92,7.67953825]
[1735003324931,10.31473825,189.98,189.94,2.6356]
[1735003325541,10.31473825,189.98,189.95,5.12915382]
[1735003325932,10.31473825,189.98,189.94,2.6356]
[1735003326638,10.31473825,189.98,189.95,5.12745356]
[1735003327044,2.6352,189.97,189.94,2.6356]
[1735003327354,7.67953825,189.98,189.92,2.6358]
[1735003327543,2.6355,189.95,189.93,5.12631212]
[1735003327739,2.6355,189.95,189.88,7.67953825]
[1735003327939,2.6355,189.95,189.89,15.8944948]
[1735003328241,7.67953825,189.96,189.9,14.17328728]
[1735003328439,7.67953825,189.96,189.91,5.12605549]
[1735003328842,2.6358,189.94,189.92,5.12605549]
[1735003329049,2.6358,189.94,189.9,2.6362]
[1735003329340,2.6358,189.94,189.91,5.1265113]
[1735003329546,2.6358,189.94,189.92,5.1265113]
[1735003329944,2.6358,189.94,189.9,2.6362]
[1735003330245,2.6358,189.94,189.91,5.12576747]
[1735003330541,7.67953825,189.94,189.88,2.6364]
[1735003330742,7.67953825,189.94,189.89,9.0487878]
[1735003330945,11.03953825,189.94,189.89,5.126093]
[1735003331244,11.03953825,189.94,189.9,5.126093]
[1735003331544,2.6358,189.93,189.91,5.126093]
[1735003331847,11.03953825,189.94,189.88,2.6364]
[1735003332141,11.03953825,189.94,189.89,9.01338571]
[1735003332342,11.03953825,189.94,189.89,5.12147889]
[1735003332742,11.03953825,189.94,189.9,5.12147889]
[1735003333144,11.03953825,189.94,189.88,2.6364]
[1735003333441,2.6361,189.91,189.89,5.12382916]
[1735003333838,2.6361,189.91,189.84,10.90613825]
[1735003334042,2.6361,189.91,189.9,5.12408959]
[1735003334448,2.6361,189.91,189.86,2.6366]
[1735003334644,2.6361,189.91,189.87,9.01863395]
[1735003334841,2.6361,189.91,189.88,9.89074225]
[1735003335041,2.6361,189.91,189.89,5.12445511]
[1735003335350,2.6361,189.91,189.86,2.6366]
[1735003335547,2.6362,189.9,189.87,14.14456103]
[1735003335845,2.6362,189.9,189.88,9.89184729]
[1735003336046,2.6363,189.89,189.88,5.1251481]
[1735003336437,2.6363,189.89,189.83,4.1685]
[1735003336643,7.67953825,189.9,189.84,9.02451451]
[1735003336842,7.67953825,189.9,189.84,5.12771072]
[1735003337049,2.6368,189.86,189.84,5.12771072]
[1735003337243,7.67953825,189.88,189.85,5.12771072]
[1735003337448,7.67953825,189.86,189.8,7.67953825]
[1735003337747,7.67953825,189.86,189.81,9.02441635]
[1735003337948,7.67953825,189.86,189.82,14.1525867]
[1735003338143,7.67953825,189.86,189.82,5.12799362]
[1735003338447,7.67953825,189.86,189.83,5.12799362]
[1735003338642,7.67953825,189.86,189.78,62.1899138]
[1735003338838,7.67953825,189.86,189.79,9.02085466]
[1735003339041,2.6374,189.82,189.8,9.02085466]
[1735003339241,2.6374,189.82,189.81,9.89390734]
[1735003339450,2.6374,189.82,189.81,5.12638174]
[1735003341647,2.6374,189.82,189.77,10.31753825]
[1735003341945,2.6374,189.82,189.78,14.13731667]
[1735003342146,2.6374,189.82,189.79,5.12233299]
[1735003342647,2.6375,189.81,189.8,5.12233299]
[1735003342850,7.67953825,189.84,189.77,7.67953825]
[1735003343043,2.6376,189.8,189.78,4.76343227]
[1735003343250,2.6376,189.8,189.79,5.12125244]
[1735003343451,2.6376,189.8,189.75,10.87633825]
[1735003343647,2.6376,189.8,189.76,9.88282606]
[1735003343851,2.6376,189.8,189.77,5.12027689]
[1735003344154,11.03953825,189.82,189.75,9.28813825]
[1735003344451,7.67953825,189.78,189.76,5.12243582]
[1735003344653,7.67953825,189.78,189.71,7.67953825]
[1735003344847,2.6381,189.77,189.72,9.01464374]
[1735003345048,7.67953825,189.78,189.73,9.88647422]
[1735003345352,7.67953825,189.78,189.74,5.12216775]
[1735003345554,2.638,189.77,189.74,5.12216775]
[1735003345850,2.638,189.77,189.72,2.6387]
[1735003346051,2.638,189.77,189.71,7.67953825]
[1735003346352,10.31743825,189.78,189.73,2.6385]
[1735003346550,11.03953825,189.82,189.73,7.67953825]
[1735003346751,11.03953825,189.82,189.75,7.67953825]
[1735003346752,7.67953825,189.82,189.75,7.67953825]
[1735003346950,2.6376,189.81,189.75,7.67953825]
[1735003347550,2.6376,189.81,189.76,5.11457483]
[1735003347854,2.6376,189.81,189.75,7.67953825]
[1735003348251,2.6376,189.81,189.73,12.0112251]
[1735003348456,2.6376,189.81,189.74,14.1040025]
[1735003348657,2.6376,189.81,189.76,2.638]
[1735003349852,3.36,189.83,189.73,12.0112251]
[1735003350049,3.36,189.85,189.74,14.10098381]
[1735003350255,3.36,189.85,189.75,8.9920588]
[1735003350554,3.36,189.85,189.76,8.9920588]
[1735003350756,2.6371,189.84,189.76,6.63842501]
[1735003350956,2.6371,189.84,189.77,5.10892501]
[1735003351158,2.6371,189.84,189.78,5.10892501]
[1735003351551,2.6371,189.84,189.76,1.5295]
[1735003351948,12.0112251,189.86,189.76,1.5295]
[1735003352153,12.0112251,189.83,189.77,5.1078657]
[1735003352355,12.0112251,189.83,189.75,1.5872]
[1735003352563,2.6377,189.8,189.75,4.2255]
[1735003353260,3.36,189.84,189.75,1.5872]
[1735003353762,2.6375,189.81,189.76,2.6381]
[1735003354454,12.0112251,189.83,189.71,13.5407251]
[1735003354761,12.0112251,189.83,189.72,14.09786466]
[1735003354959,2.638,189.77,189.73,7.74619325]
[1735003355163,2.638,189.77,189.73,5.10769325]
[1735003355351,2.638,189.77,189.71,1.5295]
[1735003355965,2.638,189.77,189.72,2.6387]
[1735003356162,12.0112251,189.8,189.72,2.6387]
[1735003356365,2.6382,189.76,189.72,2.6387]
[1735003357065,2.638,189.78,189.73,2.6386]
[1735003357254,12.0112251,189.83,189.71,13.5407251]
[1735003357469,3.36,189.82,189.71,13.5407251]
[1735003357660,3.36,189.82,189.72,9.8522924]
[1735003357863,3.36,189.82,189.73,5.10470962]
[1735003358061,2.6377,189.8,189.71,13.5407251]
[1735003358261,2.6377,189.8,189.72,9.85149134]
[1735003358561,2.6377,189.8,189.73,5.10399282]
[1735003358763,2.6377,189.8,189.75,2.6382]
[1735003361666,3.36,189.82,189.77,2.638]
[1735003362467,3.36,189.82,189.71,13.5407251]
[1735003362468,3.36,189.82,189.75,2.6382]
[1735003363564,2.6377,189.8,189.75,2.6382]
[1735003364668,2.6377,189.8,189.71,13.5407251]
[1735003364866,2.6377,189.8,189.76,2.6381]
[1735003373181,4.8014,189.88,189.78,2.6378]
[1735003373381,7.68796751,189.83,189.78,2.6378]
[1735003373676,7.68796751,189.83,189.72,57.9443138]
[1735003373881,7.68796751,189.81,189.75,2.6382]
[1735003374076,11.04796751,189.81,189.75,2.6382]
[1735003376373,7.68796751,189.79,189.74,2.6384]
[1735003376779,2.6379,189.78,189.75,5.11833437]
[1735003376980,2.6379,189.78,189.76,5.11833437]
[1735003377377,2.6379,189.78,189.74,2.6384]
[1735003377688,2.6379,189.78,189.75,5.12264521]
[1735003377981,2.6379,189.78,189.76,5.12264521]
[1735003378281,2.6379,189.78,189.74,2.6384]
[1735003378579,7.68796751,189.79,189.75,9.88905565]
[1735003378784,2.638,189.77,189.75,5.12215527]
[1735003378984,2.638,189.77,189.76,5.12215527]
[1735003379278,10.32596751,189.77,189.76,5.12215527]
[1735003379685,2.6385,189.74,189.71,57.9443138]
[1735003379879,7.68796751,189.74,189.71,57.9443138]
[1735003380185,7.68796751,189.74,189.68,57.9443138]
[1735003380186,2.6389,189.71,189.68,57.9443138]
[1735003380381,2.6389,189.71,189.69,4.77408776]
[1735003380685,2.6389,189.71,189.68,57.9443138]
[1735003380886,2.6389,189.71,189.69,4.26275873]